Organisation Name,Organisation Code,Directorate/Service,Service Category Label,Service Code,Supplier Name,Supplier Reference,Payment Date,Transaction Number,Net Payments,Purpose of Spend
North West Leicestershire District Council,31UH,Housing Repairs,HRA Housing Repairs & Maintenance,HRAHRM,Sure Maintenance Ltd,A040460,20/03/2019,1376763,425.76,Plumbing & Heating
North West Leicestershire District Council,31UH,Housing Repairs,HRA Housing Repairs & Maintenance,HRAHRM,Sure Maintenance Ltd,A040460,20/03/2019,1376767,17413.13,Plumbing & Heating
North West Leicestershire District Council,31UH,Housing Repairs,HRA Housing Repairs & Maintenance,HRAHRM,Sure Maintenance Ltd,A040460,20/03/2019,1376768,17418.17,Plumbing & Heating
North West Leicestershire District Council,31UH,Housing Repairs,HRA Housing Repairs & Maintenance,HRAHRM,Sure Maintenance Ltd,A040460,20/03/2019,1376769,750,Plumbing & Heating
North West Leicestershire District Council,31UH,Housing Repairs,HRA Housing Repairs & Maintenance,HRAHRM,Sure Maintenance Ltd,A040460,20/03/2019,1376770,2427.92,Plumbing & Heating
North West Leicestershire District Council,31UH,Housing Repairs,HRA Housing Repairs & Maintenance,HRAHRM,Sure Maintenance Ltd,A040460,20/03/2019,1376771,4183.45,Plumbing & Heating
North West Leicestershire District Council,31UH,Housing Repairs,HRA Housing Repairs & Maintenance,HRAHRM,Sure Maintenance Ltd,A040460,20/03/2019,1376772,1342.64,Plumbing & Heating
North West Leicestershire District Council,31UH,Housing Repairs,HRA Housing Repairs & Maintenance,HRAHRM,Sure Maintenance Ltd,A040460,20/03/2019,1376773,1234.81,Plumbing & Heating
North West Leicestershire District Council,31UH,Housing Repairs,HRA Housing Repairs & Maintenance,HRAHRM,Sure Maintenance Ltd,A040460,20/03/2019,1376774,9730.9,Plumbing & Heating
North West Leicestershire District Council,31UH,Housing Repairs,HRA Housing Repairs & Maintenance,HRAHRM,Sure Maintenance Ltd,A040460,20/03/2019,1376775,1082.6,Plumbing & Heating
North West Leicestershire District Council,31UH,Housing Repairs,HRA Housing Repairs & Maintenance,HRAHRM,Sure Maintenance Ltd,A040460,20/03/2019,1376776,2684.06,Plumbing & Heating
North West Leicestershire District Council,31UH,Housing Repairs,HRA Housing Repairs & Maintenance,HRAHRM,Sure Maintenance Ltd,A040460,20/03/2019,1376777,499.36,Plumbing & Heating
North West Leicestershire District Council,31UH,Housing,HRA Housing Management,HRAHM,Redacted - Personal data,A041569,06/03/2019,1376008,290,Compensation
North West Leicestershire District Council,31UH,Housing,HRA Housing Management,HRAHM,St Marys TARA,A042249,06/03/2019,1376010,992.47,Grants
North West Leicestershire District Council,31UH,Chief Exec,Chief Executive,CHEX,Emap Publishing Ltd,A042234,06/03/2019,1376011,299,Subscriptions
North West Leicestershire District Council,31UH,Communications,Corporate - Customer Services,CS,Neopost Limited,A000079,27/03/2019,1376966,1461.91,Postages
North West Leicestershire District Council,31UH,Finance,Exchequer Services,EXCH,Comensura Limited,A036958,27/03/2019,1376968,14752.51,Agency Staff
North West Leicestershire District Council,31UH,Finance,Financial Planning,FINPLA,Hinckley & Bosworth Borough Council,A000770,27/03/2019,1376970,10814.42,Policy Lending
North West Leicestershire District Council,31UH,Finance,Exchequer Services,EXCH,Click Travel Ltd,A044308,27/03/2019,1377015,1088.72,Travel and Accomodation
North West Leicestershire District Council,31UH,Housing Strategy,Community - Housing Strategy,HS,Homestart (N.W. Leics),A000780,27/03/2019,1377030,10000,Grants
North West Leicestershire District Council,31UH,Finance,Financial Planning,FINPLA,Appleby Magna Parish Council,A000060,27/03/2019,1377094,14493.6,Grants
North West Leicestershire District Council,31UH,Information Technology,ICT Services,ICT,EE Ltd (Equipment),A043413,06/03/2019,1375613,375,Operational Purchases
North West Leicestershire District Council,31UH,Information Technology,ICT Services,ICT,Canon UK Ltd,A040459,06/03/2019,1375614,512.31,Equipment Operating Leases
North West Leicestershire District Council,31UH,Leisure & Culture,Cultural Services TIC,CULTIC,Roberts Coaches Limited,A017327,06/03/2019,1375616,564.28,Event Expenditure
North West Leicestershire District Council,31UH,Housing,HRA Housing Management,HRAHM,Redacted - Personal data,A045358,06/03/2019,1375622,1000,Under Occupancy Incentives
North West Leicestershire District Council,31UH,Housing,HRA Housing Management,HRAHM,Northern Housing Consortium Ltd,A028253,06/03/2019,1375623,3500,Alarm System Telephones
North West Leicestershire District Council,31UH,Information Technology,ICT Services,ICT,GE Capital Equipment Finance Ltd,A017429,06/03/2019,1375650,339.08,Equipment Operating Leases
North West Leicestershire District Council,31UH,Housing Repairs,HRA Housing Repairs & Maintenance,HRAHRM,G Purchase Construction Ltd,A032830,06/03/2019,1375664,1063.05,Housing Repairs
North West Leicestershire District Council,31UH,Housing Repairs,HRA Housing Repairs & Maintenance,HRAHRM,G Purchase Construction Ltd,A032830,06/03/2019,1375665,703.8,Housing Repairs
North West Leicestershire District Council,31UH,Legal & Democratic,Member Services,LDMS,Twofold Ltd,A041261,06/03/2019,1375667,835.16,Computing
North West Leicestershire District Council,31UH,Property Services,Property Commercial Lettings,PROPCL,Water Plus Limited,A044043,06/03/2019,1375671,942.05,Water Charges (Metered)
North West Leicestershire District Council,31UH,Property Services,Property Facilities Management,PROPFM,Water Plus Limited,A044043,06/03/2019,1375672,846.84,Water Charges (Metered)
North West Leicestershire District Council,31UH,Property Services,Property Commercial Lettings,PROPCL,British Telecommunications Plc,A000233,06/03/2019,1375675,592.66,Telephones
North West Leicestershire District Council,31UH,Housing Repairs,HRA Housing Repairs & Maintenance,HRAHRM,G Purchase Construction Ltd,A032830,06/03/2019,1375676,75443.2,Housing Repairs
North West Leicestershire District Council,31UH,Leisure Centres,Hermitage Leisure Centre,HLC,Water Plus Limited,A044043,06/03/2019,1375679,1328.03,Water Charges (Metered)
North West Leicestershire District Council,31UH,Finance,Exchequer Services,EXCH,Comensura Limited,A036958,06/03/2019,1375680,13183.71,Agency Staff
North West Leicestershire District Council,31UH,Finance,Exchequer Services,EXCH,Click Travel Ltd,A044308,06/03/2019,1375692,965.44,Travel and Accomodation
North West Leicestershire District Council,31UH,Finance,Financial Planning,FINPLA,Scottish Widows Investment Partnerhiip,A039247,22/03/2019,1376948,5000000,Policy Lending
North West Leicestershire District Council,31UH,Finance,Financial Planning,FINPLA,Goldman Sachs Money Market Fund,A039248,22/03/2019,1376949,2800000,Policy Lending
North West Leicestershire District Council,31UH,Finance,Financial Planning,FINPLA,Blackrock Cash Management,A039249,22/03/2019,1376950,1900000,Policy Lending
North West Leicestershire District Council,31UH,Finance,Financial Planning,FINPLA,Debt Management Account Deposit Facility,A045401,22/03/2019,1376951,1000000,Policy Lending
North West Leicestershire District Council,31UH,Housing,HRA Housing Management,HRAHM,HMCTS,A033956,22/03/2019,1376953,3817,Legal & Professional Services
North West Leicestershire District Council,31UH,Finance,Financial Planning,FINPLA,Barclays Mercantile Business,A003940,22/03/2019,1376956,1500000,Policy Lending
North West Leicestershire District Council,31UH,Finance,Financial Planning,FINPLA,Slough Borough Council,A045329,22/03/2019,1376957,2000000,Policy Lending
North West Leicestershire District Council,31UH,Leisure Centres,Hermitage Leisure Centre,HLC,Mars Wrigley Confectionery Uk Ltd,A033723,22/03/2019,1376958,260,Equipment Operating Leases
North West Leicestershire District Council,31UH,Finance,Financial Planning,FINPLA,Stirling Council,A044703,22/03/2019,1377004,1000000,Policy Lending
North West Leicestershire District Council,31UH,Finance,Exchequer Services,EXCH,H M Land Registry,A000713,22/03/2019,1377007,608,Land Registry Searches
North West Leicestershire District Council,31UH,Corporate Director,Human Resources,HR,The Disclosure & Barring Service,A027625,22/03/2019,1377008,466,DBS Checks
North West Leicestershire District Council,31UH,Finance,Financial Planning,FINPLA,Public Works Loan Board,A001340,07/03/2019,1376091,554716.69,Annuity Loans
North West Leicestershire District Council,31UH,Finance,Financial Planning,FINPLA,Public Works Loan Board,A001340,07/03/2019,1376092,1000000,Annuity Loans
North West Leicestershire District Council,31UH,Finance,Financial Planning,FINPLA,Public Works Loan Board,A001340,07/03/2019,1376093,73866.5,Annuity Loans
North West Leicestershire District Council,31UH,Finance,Financial Planning,FINPLA,Leicestershire County Council,A000950,07/03/2019,1376094,4228661,Precepts
North West Leicestershire District Council,31UH,Finance,Financial Planning,FINPLA,Leicestershire County Council,A000950,07/03/2019,1376095,1881009,Precepts
North West Leicestershire District Council,31UH,Finance,Financial Planning,FINPLA,Department for Communities & Local Government,A028518,07/03/2019,1376096,2333486,Subsidy Receipts & Repayments
North West Leicestershire District Council,31UH,Finance,Financial Planning,FINPLA,"Leicester, Leicestershire & Rutland Combined Fire Authority",A028339,07/03/2019,1376097,220438,Precepts
North West Leicestershire District Council,31UH,Finance,Financial Planning,FINPLA,The Office of the Police and Crime Commissioner for Leicestershire,A007096,07/03/2019,1376098,677901.28,Precepts
North West Leicestershire District Council,31UH,Corporate Director,Human Resources,HR,The Disclosure & Barring Service,A027625,07/03/2019,1376099,308,DBS Checks
North West Leicestershire District Council,31UH,Finance,Financial Planning,FINPLA,The Highland Council,A043417,07/03/2019,1376108,2000000,Policy Lending
North West Leicestershire District Council,31UH,Finance,Financial Planning,FINPLA,Cornwall  Council,A031018,07/03/2019,1376109,34092.47,Policy Lending
North West Leicestershire District Council,31UH,Finance,Financial Planning,FINPLA,Thurrock Council,A043910,07/03/2019,1376110,1000000,Policy Lending
North West Leicestershire District Council,31UH,Finance,Exchequer Services,EXCH,ESPO,A000958,07/03/2019,1376111,9910.29,Gas
North West Leicestershire District Council,31UH,Finance,Exchequer Services,EXCH,Total Gas & Power,A033385,07/03/2019,1376112,17025.23,Electricity
North West Leicestershire District Council,31UH,Finance,Exchequer Services,EXCH,Comensura Limited,A036958,13/03/2019,1376029,11654.17,Agency Staff
North West Leicestershire District Council,31UH,Finance,Revenues,REVS,Browne Jacobson LLP,A000251,13/03/2019,1376057,352,Legal & Professional Services
North West Leicestershire District Council,31UH,Corporate Director,Human Resources,HR,Wider Plan Ltd,A043948,13/03/2019,1376071,4613,Staff Benefit Scheme
North West Leicestershire District Council,31UH,Corporate Director,Human Resources,HR,Euro RSCG People T/A Havas People Ltd,A001395,13/03/2019,1376084,1023.5,Employee Advertising
North West Leicestershire District Council,31UH,Information Technology,ICT Services,ICT,Canon UK Ltd,A040459,13/03/2019,1376086,2150.68,Photo Copier - Copy Charges Rental
North West Leicestershire District Council,31UH,Property Services,Property Facilities Management,PROPFM,Water Plus Limited,A044043,13/03/2019,1376087,792.94,Water Charges (Metered)
North West Leicestershire District Council,31UH,Information Technology,ICT Services,ICT,Virgin Media Business,A008908,13/03/2019,1376115,508.7,Telephones
North West Leicestershire District Council,31UH,Housing Repairs,HRA Housing Repairs & Maintenance,HRAHRM,Westleigh Developments Ltd,A039359,13/03/2019,1376147,140579.49,Contract Payments (Dws) Ext
North West Leicestershire District Council,31UH,Corporate Director,Human Resources,HR,Euro RSCG People T/A Havas People Ltd,A001395,13/03/2019,1376209,5793.26,Employee Advertising
North West Leicestershire District Council,31UH,Finance,Exchequer Services,EXCH,Click Travel Ltd,A044308,13/03/2019,1376210,2017.38,Travel and Accomodation
North West Leicestershire District Council,31UH,Property Services,Property Facilities Management,PROPFM,British Telecommunications Plc,A000233,13/03/2019,1376213,550.82,Telephones
North West Leicestershire District Council,31UH,Communications,Corporate - Customer Services,CS,Neopost Limited,A000079,13/03/2019,1376227,5000,Postages
North West Leicestershire District Council,31UH,Housing Repairs,HRA Housing Repairs & Maintenance,HRAHRM,G Purchase Construction Ltd,A032830,13/03/2019,1376259,2720,Housing Repairs
North West Leicestershire District Council,31UH,Housing,HRA Housing Management,HRAHM,Carpet Cuts,A035198,13/03/2019,1376262,750,HRA Hardship Fund Expenditure
North West Leicestershire District Council,31UH,Legal & Democratic,Legal Services,LDLS,Bevan Brittan,A031366,20/03/2019,1376469,270,Legal & Professional Services
North West Leicestershire District Council,31UH,Neighbourhoods & Communities,N & C Neighbourhoods,NACN,Ashby de la Zouch Town Council,A027892,20/03/2019,1376479,9599.71,Contributions
North West Leicestershire District Council,31UH,Neighbourhoods & Communities,N & C Neighbourhoods,NACN,Ashby de la Zouch Town Council,A027892,20/03/2019,1376480,64619.23,Grants
North West Leicestershire District Council,31UH,Neighbourhoods & Communities,N & C Neighbourhoods,NACN,Ashby de la Zouch Town Council,A027892,20/03/2019,1376481,24027.18,Grants
North West Leicestershire District Council,31UH,Corporate Director,Human Resources,HR,Health Management Ltd,A038840,20/03/2019,1376482,348.5,Occupational Health
North West Leicestershire District Council,31UH,Housing,HRA Housing Management,HRAHM,Redacted - Personal data,A045386,20/03/2019,1376502,435.6,Under Occupancy Incentives
North West Leicestershire District Council,31UH,Housing,HRA Housing Management,HRAHM,Linford & Verdon Tenants and,A011717,20/03/2019,1376504,1000,Grants
North West Leicestershire District Council,31UH,Housing,HRA Housing Management,HRAHM,Water Plus Limited,A044043,20/03/2019,1376512,1023.57,Water Charges (Metered)
North West Leicestershire District Council,31UH,Communications,Corporate - Customer Services,CS,Neopost Limited,A000079,20/03/2019,1376517,2552.28,Equipment Operating Leases
North West Leicestershire District Council,31UH,Neighbourhoods & Communities,N & C Community Safety,NACCS,Ibstock Parish Council,A000807,20/03/2019,1376518,5720,Grants
North West Leicestershire District Council,31UH,Information Technology,ICT Services,ICT,Canon UK Ltd,A040459,06/03/2019,1375708,403.8,Photo Copier - Copy Charges Rental
North West Leicestershire District Council,31UH,Housing Repairs,HRA Housing Repairs & Maintenance,HRAHRM,Cadent Gas limited,A032629,06/03/2019,1375731,652,Contract Payments (Dws) Ext
North West Leicestershire District Council,31UH,Housing Repairs,HRA Housing Repairs & Maintenance,HRAHRM,Emperor Scaffolding Limited,A038405,06/03/2019,1375738,400,Hire Of Operational Equipment
North West Leicestershire District Council,31UH,Housing Repairs,HRA Housing Repairs & Maintenance,HRAHRM,Emperor Scaffolding Limited,A038405,06/03/2019,1375740,300,Hire Of Operational Equipment
North West Leicestershire District Council,31UH,Finance,Exchequer Services,EXCH,Leicestershire County Council,A000951,06/03/2019,1375757,3000,Legal & Professional Services
North West Leicestershire District Council,31UH,Housing Repairs,HRA Housing Repairs & Maintenance,HRAHRM,Leicestershire County Council,A000950,06/03/2019,1375971,997.19,Contract Payments (Dws) Ext
North West Leicestershire District Council,31UH,Housing Repairs,HRA Housing Repairs & Maintenance,HRAHRM,Ward Recycling,A035471,06/03/2019,1375973,417.14,Tipping Charges
North West Leicestershire District Council,31UH,Street Management,Environment - Street Scene,ESS,Water Plus Limited,A044043,06/03/2019,1375977,281.12,Water Charges (Unmetered)
North West Leicestershire District Council,31UH,Housing Repairs,HRA Housing Repairs & Maintenance,HRAHRM,Summers Inman,A045259,06/03/2019,1375995,780,Legal & Professional Services
North West Leicestershire District Council,31UH,Housing Repairs,HRA Housing Repairs & Maintenance,HRAHRM,Emperor Scaffolding Limited,A038405,06/03/2019,1375996,555,Hire Of Operational Equipment
North West Leicestershire District Council,31UH,Housing Repairs,HRA Housing Repairs & Maintenance,HRAHRM,Emperor Scaffolding Limited,A038405,06/03/2019,1375997,555,Hire Of Operational Equipment
North West Leicestershire District Council,31UH,Housing Repairs,HRA Housing Repairs & Maintenance,HRAHRM,Emperor Scaffolding Limited,A038405,06/03/2019,1375998,555,Hire Of Operational Equipment
North West Leicestershire District Council,31UH,Housing Repairs,HRA Housing Repairs & Maintenance,HRAHRM,Emperor Scaffolding Limited,A038405,06/03/2019,1375999,515,Hire Of Operational Equipment
North West Leicestershire District Council,31UH,Housing Repairs,HRA Housing Repairs & Maintenance,HRAHRM,NICEIC Sales,A026251,06/03/2019,1376005,465,Subscriptions
North West Leicestershire District Council,31UH,Housing,HRA Housing Management,HRAHM,Carpet Cuts,A035198,06/03/2019,1376006,365,HRA Hardship Fund Expenditure
North West Leicestershire District Council,31UH,Information Technology,ICT Services,ICT,EE Ltd (Airtime),A018592,27/03/2019,1376519,3488.42,Mobile Telephones
North West Leicestershire District Council,31UH,Corporate Director,Human Resources,HR,Health Management Ltd,A038840,27/03/2019,1376803,266.7,Occupational Health
North West Leicestershire District Council,31UH,Corporate Director,Human Resources,HR,Jobs Go Public Resourcing  Limited,A018047,27/03/2019,1376805,1960,Advertising
North West Leicestershire District Council,31UH,Legal & Democratic,Legal Services,LDLS,Oadby & Wigston Borough Council,A001232,27/03/2019,1376859,550,Legal & Professional Services
North West Leicestershire District Council,31UH,Information Technology,ICT Services,ICT,EE Ltd (Airtime),A018592,27/03/2019,1376866,1434,Mobile Working
North West Leicestershire District Council,31UH,Leisure & Culture,Cultural Services TIC,CULTIC,Ashby Dramatic Society,A021686,27/03/2019,1376921,788.4,Event Expenditure
North West Leicestershire District Council,31UH,Environmental Health,Environmental Health & Licensing,EEHL,College Garth Ltd T/A College Garth Kennels,A000385,27/03/2019,1376938,2257.95,Stray Dog Service
North West Leicestershire District Council,31UH,Legal & Democratic,Legal Services,LDLS,Martin Lee & Co,A030613,27/03/2019,1376940,1314.25,Legal & Professional Services
North West Leicestershire District Council,31UH,Legal & Democratic,Legal Services,LDLS,Martin Lee & Co,A030613,27/03/2019,1376941,1196.25,Legal & Professional Services
North West Leicestershire District Council,31UH,Housing,HRA Housing Management,HRAHM,Leicestershire County Council,A000950,27/03/2019,1376942,7019.61,Cleaning & Domestic Equipment
North West Leicestershire District Council,31UH,Leisure Centres,Hermitage Leisure Centre,HLC,Water Plus Limited,A044043,20/03/2019,1376562,885.85,Water Charges (Metered)
North West Leicestershire District Council,31UH,Finance,Exchequer Services,EXCH,Comensura Limited,A036958,20/03/2019,1376572,22265.8,Agency Staff
North West Leicestershire District Council,31UH,Street Management,Environment Transport,ENOT,Post Office Limited,A008559,20/03/2019,1376577,10594.5,Licences - Road Fund Licence
North West Leicestershire District Council,31UH,Housing,HRA Housing Management,HRAHM,Carpet Cuts,A035198,20/03/2019,1376582,285,HRA Hardship Fund Expenditure
North West Leicestershire District Council,31UH,Leisure & Culture,Cultural Services TIC,CULTIC,Ashby Dramatic Society,A021686,20/03/2019,1376598,2268,Event Expenditure
North West Leicestershire District Council,31UH,Finance,Exchequer Services,EXCH,Click Travel Ltd,A044308,20/03/2019,1376599,1674.09,Travel and Accomodation
North West Leicestershire District Council,31UH,Leisure Centres,Hood Park Leisure Centre,HPLC,Water Plus Limited,A044043,20/03/2019,1376602,623.69,Water Charges (Metered)
North West Leicestershire District Council,31UH,Environmental Health,Environmental Services,EES,Water Plus Limited,A044043,20/03/2019,1376604,2847.22,Sewerage & Environmental
North West Leicestershire District Council,31UH,Housing Repairs,HRA Housing Repairs & Maintenance,HRAHRM,Kaefer Ltd,A044187,20/03/2019,1376717,1181.43,Contract Payments (Dws) Ext
North West Leicestershire District Council,31UH,Housing Repairs,HRA Housing Repairs & Maintenance,HRAHRM,Kaefer Ltd,A044187,20/03/2019,1376718,5480.14,Contract Payments (Dws) Ext
North West Leicestershire District Council,31UH,Housing Repairs,HRA Housing Repairs & Maintenance,HRAHRM,Ashby Town Council,A045161,20/03/2019,1376734,5000,Contribution to Works
North West Leicestershire District Council,31UH,Housing Repairs,HRA Housing Repairs & Maintenance,HRAHRM,G Purchase Construction Ltd,A032830,20/03/2019,1376735,2000,Housing Repairs
North West Leicestershire District Council,31UH,Housing,HRA Housing Management,HRAHM,TPAS Limited,A028863,13/03/2019,1376426,852.3,Training Expenses
North West Leicestershire District Council,31UH,Economic Development,Business Focus Group,BFG,Clockwork City Ltd,A044822,13/03/2019,1376433,750,Housing Repairs
North West Leicestershire District Council,31UH,Planning & Development,Environment - Development Control,EDC,Valuation Office Agency,A034291,20/03/2019,1375742,2950,Legal & Professional Services
North West Leicestershire District Council,31UH,Neighbourhoods & Communities,N & C Community Safety,NACCS,Broadland Guarding Services Ltd,A042635,20/03/2019,1376074,3745.44,Agency Staff
North West Leicestershire District Council,31UH,Neighbourhoods & Communities,N & C Community Safety,NACCS,Solon Security,A035272,20/03/2019,1376575,581,PCC Early Intervention Expenditure
North West Leicestershire District Council,31UH,Property Services,Property Facilities Management,PROPFM,Midlands Cooling Services Ltd,A043433,20/03/2019,1376761,373,General Repairs
North West Leicestershire District Council,31UH,Information Technology,ICT Services,ICT,Phoenix Software Limited,A001298,06/03/2019,1375748,765.6,Corporate IT Licences
North West Leicestershire District Council,31UH,Street Management,Environment Waste Management,ENOWM,Straight Plc,A024906,06/03/2019,1376007,13744.5,General Materials
North West Leicestershire District Council,31UH,Planning & Development,Environment - Development Control,EDC,Urban Design Doctor Ltd,A045292,20/03/2019,1375428,6831.95,Legal & Professional Services
North West Leicestershire District Council,31UH,Housing Strategy,Community - Housing Strategy,HS,MRC Community Action,A001208,20/03/2019,1375489,303.33,HRA Hardship Fund Expenditure
North West Leicestershire District Council,31UH,Street Management,Environment Waste Management,ENOWM,Colas Limited,A045289,20/03/2019,1375760,2165.14,Hire Of Operational Equipment
North West Leicestershire District Council,31UH,Housing,HRA Housing Management,HRAHM,Love2Reward,A036807,20/03/2019,1376762,307.5,Housing Voucher Scheme
North West Leicestershire District Council,31UH,Street Management,Environment Parks,ENOP,George Browns Ltd,A044771,13/03/2019,1375378,1425,Operational Purchases
North West Leicestershire District Council,31UH,Street Management,Environment Parks,ENOP,JB Tool Hire Ltd,A011490,13/03/2019,1375500,295,Operational Purchases
North West Leicestershire District Council,31UH,Street Management,Environment Parks,ENOP,OMS,A043771,13/03/2019,1376062,750,Training Expenses
North West Leicestershire District Council,31UH,Housing,HRA Housing Management,HRAHM,Kirona,A045370,13/03/2019,1376135,475,Computing
North West Leicestershire District Council,31UH,Property Services,Property Facilities Management,PROPFM,Churchman Fenner & Brown Ltd,A045315,13/03/2019,1376143,41106.51,Property- Repairs and Maintenance
North West Leicestershire District Council,31UH,Finance,Exchequer Services,EXCH,Insight Uk,A021505,06/03/2019,1376017,8477.16,Computing
North West Leicestershire District Council,31UH,Finance,Exchequer Services,EXCH,Insight Uk,A021505,06/03/2019,1376018,1589.58,Computing
North West Leicestershire District Council,31UH,Housing Repairs,HRA Housing Repairs & Maintenance,HRAHRM,Elliott Group Limited,A005413,20/03/2019,1376241,636.76,Hire Of Operational Equipment
North West Leicestershire District Council,31UH,Leisure Centres,Hood Park Leisure Centre,HPLC,County Drains Leicester Ltd,A024295,13/03/2019,1376061,264,Operational Equipment
North West Leicestershire District Council,31UH,Chief Exec,Chief Executive,CHEX,Leicestershire County Council,A027423,13/03/2019,1376425,20422.97,Legal & Professional Services
North West Leicestershire District Council,31UH,Neighbourhoods & Communities,N & C Community Safety,NACCS,JNE Security,A044895,27/03/2019,1376914,430,PCC Early Intervention Expenditure
North West Leicestershire District Council,31UH,Street Management,Environment Transport,ENOT,VFS (Southampton) Ltd,A032557,27/03/2019,1377017,306.1,Non Scheduled Maintenance - Parts
North West Leicestershire District Council,31UH,Leisure Centres,Hood Park Leisure Centre,HPLC,Lifesavers Direct,A033109,27/03/2019,1377020,252.5,Operational Equipment
North West Leicestershire District Council,31UH,Street Management,Environment Waste Management,ENOWM,Syzygy Leisure Ltd,A044952,27/03/2019,1377025,1250,Consultants Fees
North West Leicestershire District Council,31UH,Corporate Director,Human Resources,HR,East Midlands Councils,A008942,27/03/2019,1377028,1500,Corporate Training
North West Leicestershire District Council,31UH,Street Management,Environment - Street Scene,ESS,Audaz Global Solutions Ltd,A044258,27/03/2019,1377051,317,Operational Equipment
North West Leicestershire District Council,31UH,Street Management,Environment Transport,ENOT,Municipal Vehicle Inspection Services Ltd,A025025,27/03/2019,1377057,1156,Repairs - Parts
North West Leicestershire District Council,31UH,Housing Repairs,HRA Housing Repairs & Maintenance,HRAHRM,City Electrical Factors Limited,A035306,27/03/2019,1377060,535.8,Consumable Materials
North West Leicestershire District Council,31UH,Property Services,Property Facilities Management,PROPFM,County Drains Leicester Ltd,A024295,27/03/2019,1377061,1417,General Repairs
North West Leicestershire District Council,31UH,Leisure & Culture,Cultural Services Arts & Events,CULTEV,Mrs L C Godfrey,A045220,27/03/2019,1377070,450,Consultants Fees
North West Leicestershire District Council,31UH,Street Management,Environment Transport,ENOT,Westbury Industrial Supplies Limited,A009933,27/03/2019,1377082,381.72,Protective Clothing
North West Leicestershire District Council,31UH,Street Management,Environment Transport,ENOT,Freight Transport Association,A027981,27/03/2019,1377083,795,Subscriptions
North West Leicestershire District Council,31UH,Street Management,Environment Transport,ENOT,K Irvine Plant UK Ltd,A041659,27/03/2019,1377084,414.5,Scheduled Servicing - Parts
North West Leicestershire District Council,31UH,Leisure Centres,Castle Donington Community College,CDCC,Elliott Group Limited,A005413,06/03/2019,1375634,505.72,Secure Storage
North West Leicestershire District Council,31UH,Street Management,Environment Parks,ENOP,The Blast Shop,A043846,06/03/2019,1375710,309.6,General Repairs
North West Leicestershire District Council,31UH,Property Services,Property Facilities Management,PROPFM,Regarde Security Ltd,A013049,06/03/2019,1375959,438.4,Building Security
North West Leicestershire District Council,31UH,Property Services,Property Facilities Management,PROPFM,Regarde Security Ltd,A013049,06/03/2019,1375960,470.4,Building Security
North West Leicestershire District Council,31UH,Finance,Financial Planning,FINPLA,CIPFA Business Limited,A036780,06/03/2019,1375962,345,Training Expenses
North West Leicestershire District Council,31UH,Housing,HRA Housing Management,HRAHM,Kaplan Financial,A040435,20/03/2019,1376056,1565.83,Training Expenses
North West Leicestershire District Council,31UH,Leisure & Culture,Cultural Services Arts & Events,CULTEV,The National Forest Company,A027538,20/03/2019,1376162,9000,National Forest & Beyond Partnership
North West Leicestershire District Council,31UH,Environmental Health,Environmental Health & Licensing,EEHL,Vetspeed Ltd,A027546,20/03/2019,1376478,762.5,Disposal Costs
North West Leicestershire District Council,31UH,Housing,HRA Older Persons Service,HRAOPS,Tunstall Healthcare (UK) Limited,A001701,20/03/2019,1376516,3962.4,Alarm System Telephones
North West Leicestershire District Council,31UH,Information Technology,ICT Services,ICT,Phoenix Software Limited,A001298,20/03/2019,1376555,1583.13,Corporate IT Licences
North West Leicestershire District Council,31UH,Property Services,Property Facilities Management,PROPFM,Regarde Security Ltd,A013049,20/03/2019,1376688,520.8,Building Security
North West Leicestershire District Council,31UH,Property Services,Property Facilities Management,PROPFM,Vertiv Infrastructure ( Emerson Network Power),A035119,20/03/2019,1376706,3235.91,General Repairs
North West Leicestershire District Council,31UH,Street Management,Environment Parks,ENOP,Secure-a-field,A038742,20/03/2019,1376711,488,Operational Purchases
North West Leicestershire District Council,31UH,Property Services,Property Facilities Management,PROPFM,Coldstar UK Limited,A044711,20/03/2019,1376715,725,Service Contracts
North West Leicestershire District Council,31UH,Housing,HRA Housing Management,HRAHM,ESPO,A000958,27/03/2019,1375607,272.52,Operational Equipment
North West Leicestershire District Council,31UH,Street Management,Environment Transport,ENOT,FAROL Limited,A041905,27/03/2019,1376811,2468.03,Repairs - Parts
North West Leicestershire District Council,31UH,Street Management,Environment Transport,ENOT,FAROL Limited,A041905,27/03/2019,1376812,2271.95,Repairs - Parts
North West Leicestershire District Council,31UH,Legal & Democratic,Legal Services,LDLS,Sellick Partnership (East Midlands) Limited,A036668,27/03/2019,1376863,707.4,Agency Staff
North West Leicestershire District Council,31UH,Street Management,Environment Transport,ENOT,Johnston Sweepers Ltd,A039355,27/03/2019,1376903,289.1,Repairs - Parts
North West Leicestershire District Council,31UH,Street Management,Environment Parks,ENOP,The International Certification and Training Academy,A044098,27/03/2019,1376995,460,Training Expenses
North West Leicestershire District Council,31UH,Leisure & Culture,Sport & Physical Activity,SPA,Hugglescote Community Centre,A028420,27/03/2019,1377024,257,Venue Hire
North West Leicestershire District Council,31UH,Street Management,Environment - Street Scene,ESS,Future Surveys Limited,A044012,13/03/2019,1376028,490,Legal & Professional Services
North West Leicestershire District Council,31UH,Environment Directorate,Environment - Directorate Support,ENVDS,Hinckley & Bosworth Borough Council,A000770,13/03/2019,1376060,5609.85,Agency Staff
North West Leicestershire District Council,31UH,Property Services,Property Facilities Management,PROPFM,Midland Stonemasonry Limited,A045355,13/03/2019,1376064,880,Contract Payments (Other) Ext
North West Leicestershire District Council,31UH,Information Technology,ICT Services,ICT,Kingsfield Computer Products Ltd,A039732,13/03/2019,1376075,766.66,Computing
North West Leicestershire District Council,31UH,Housing,HRA Housing Management,HRAHM,Arena Partnership Ltd,A042656,13/03/2019,1376081,3600,Computing
North West Leicestershire District Council,31UH,Street Management,Environment Transport,ENOT,Westbury Industrial Supplies Limited,A009933,13/03/2019,1376083,701.48,Protective Clothing
North West Leicestershire District Council,31UH,Information Technology,ICT Services,ICT,Idox Software Ltd,A034157,20/03/2019,1375660,1700,Admin Equipment - Hire/Rental
North West Leicestershire District Council,31UH,Street Management,Environment Transport,ENOT,Taylor Engineering & Fabrications Ltd,A036178,13/03/2019,1369316,837.18,Non Scheduled Maintenance - Parts
North West Leicestershire District Council,31UH,Leisure Centres,Hermitage Leisure Centre,HLC,Admiral Cleaning Supplies Ltd,A040930,13/03/2019,1375600,629.91,Water Treatment
North West Leicestershire District Council,31UH,Street Management,Environment Parks,ENOP,Data Academy Ltd,A043706,13/03/2019,1375705,435,Training Expenses
North West Leicestershire District Council,31UH,Housing,HRA Housing Management,HRAHM,Alysium Consulting,A043813,13/03/2019,1376128,1013.6,Contract Payments (Other) Ext
North West Leicestershire District Council,31UH,Street Management,Environment - Street Scene,ESS,Dynamic Development Services Limited,A043778,13/03/2019,1376148,5250,Consultants Fees
North West Leicestershire District Council,31UH,Housing,HRA Housing Management,HRAHM,Aareon UK Ltd,A045197,13/03/2019,1376217,870,Contract Payments (Other) Ext
North West Leicestershire District Council,31UH,Housing,HRA Housing Management,HRAHM,Aareon UK Ltd,A045197,13/03/2019,1376218,870,Contract Payments (Other) Ext
North West Leicestershire District Council,31UH,Housing,HRA Housing Management,HRAHM,Aareon UK Ltd,A045197,13/03/2019,1376219,870,Contract Payments (Other) Ext
North West Leicestershire District Council,31UH,Housing,HRA Housing Management,HRAHM,Coalville Yellow Cabs,A041983,13/03/2019,1376224,288.5,Public Transport
North West Leicestershire District Council,31UH,Information Technology,ICT Services,ICT,ACS Systems (UK) Ltd T/a ACS Office Solutions,A043447,27/03/2019,1376055,28050,Computing
North West Leicestershire District Council,31UH,Leisure Centres,Hermitage Leisure Centre,HLC,Stowlin Ltd,A001591,27/03/2019,1376934,293.1,Water Treatment
North West Leicestershire District Council,31UH,Economic Development,Business Focus Group,BFG,Kerching Retail Limited,A038292,27/03/2019,1377001,6565,Grants
North West Leicestershire District Council,31UH,Leisure Centres,Hermitage Leisure Centre,HLC,JC Leisure Solutions,A044714,27/03/2019,1377056,3235,General Repairs
North West Leicestershire District Council,31UH,Street Management,Environment Parks,ENOP,Buxton's Ltd,A029426,27/03/2019,1377093,839.29,Operational Purchases
North West Leicestershire District Council,31UH,Leisure Centres,Hood Park Leisure Centre,HPLC,Stowlin Ltd,A001591,,1371732,337.2,Water Treatment
North West Leicestershire District Council,31UH,Street Management,Environment Waste Management,ENOWM,Syzygy Leisure Ltd,A044952,27/03/2019,1376584,1500,Consultants Fees
North West Leicestershire District Council,31UH,Property Services,Property Facilities Management,PROPFM,Wm Saunders Partnership LLP,A035772,27/03/2019,1376872,617.5,Consultants Fees
North West Leicestershire District Council,31UH,Street Management,Environment - Street Scene,ESS,Kerching Retail Limited,A038292,27/03/2019,1376960,1980,Contract Payments (Other) Ext
North West Leicestershire District Council,31UH,Street Management,Environment Transport,ENOT,Parkers The Parts People,A044935,27/03/2019,1376964,296.33,Non Scheduled Maintenance - Parts
North West Leicestershire District Council,31UH,Finance,Financial Planning,FINPLA,Mazars LLP,A045078,27/03/2019,1376965,9725,Audit Commision Fees
North West Leicestershire District Council,31UH,Street Management,Environment Transport,ENOT,Terberg Matec UK Limited,A001647,27/03/2019,1376967,257.88,Non Scheduled Maintenance - Parts
North West Leicestershire District Council,31UH,Finance,Head of Finance,HOFI,Leicestershire County Council Pension Fund,A028310,27/03/2019,1376969,53434.61,Pensions- Added Years/Capital Costs
North West Leicestershire District Council,31UH,Street Management,Environment Transport,ENOT,Mertrux Ltd,A035291,27/03/2019,1376971,277.01,Scheduled Servicing - Parts
North West Leicestershire District Council,31UH,Housing,HRA Housing Management,HRAHM,Oneserve Ltd,A041321,27/03/2019,1376999,68842.5,Computing
North West Leicestershire District Council,31UH,Finance,Revenues,REVS,Capita Business Services Ltd,A002968,27/03/2019,1377011,1300,Grants
North West Leicestershire District Council,31UH,Leisure & Culture,Cultural Services Arts & Events,CULTEV,Adrian Moakes,A044889,27/03/2019,1377027,7500,Contract Payments (Other) Ext
North West Leicestershire District Council,31UH,Leisure Centres,Hermitage Leisure Centre,HLC,GTE Electrical Services Ltd,A044968,27/03/2019,1377034,600,General Repairs
North West Leicestershire District Council,31UH,Leisure Centres,Hermitage Bar & Catering,HLBC,Molson Coors Brewing Company (UK) Ltd,A044397,27/03/2019,1377036,709.34,Bar Provisions
North West Leicestershire District Council,31UH,Leisure Centres,Hermitage Leisure Centre,HLC,Century Fire & Security Limited,A020453,27/03/2019,1377046,3945,General Repairs
North West Leicestershire District Council,31UH,Leisure Centres,Hermitage Bar & Catering,HLBC,Snackline Direct Ltd,A042489,27/03/2019,1377054,567.69,Catering Provisions
North West Leicestershire District Council,31UH,Leisure Centres,Hood Park Leisure Centre,HPLC,Leisureteq,A000968,13/03/2019,1373672,302.8,Water Treatment
North West Leicestershire District Council,31UH,Property Services,Property Commercial Lettings,PROPCL,John Merison BMC Ltd,A001092,13/03/2019,1373692,2435.38,General Repairs
North West Leicestershire District Council,31UH,Leisure Centres,Hermitage Leisure Centre,HLC,Stowlin Ltd,A001591,13/03/2019,1374269,324.5,Water Treatment
North West Leicestershire District Council,31UH,Street Management,Environment Transport,ENOT,Vehicle Inspecition and Training Services,A044049,13/03/2019,1374445,300,Operational Equipment - Rep & Maint
North West Leicestershire District Council,31UH,Housing,HRA Older Persons Service,HRAOPS,Hinckley & Bosworth Borough Council,A000770,13/03/2019,1374735,1320.3,Marketing (Expenditure)
North West Leicestershire District Council,31UH,Property Services,Property Commercial Lettings,PROPCL,Thomas Cassie & Sons (Leicester) Ltd,A044078,13/03/2019,1375492,259.35,General Repairs
North West Leicestershire District Council,31UH,Property Services,Property Facilities Management,PROPFM,John Merison BMC Ltd,A001092,13/03/2019,1375697,453.6,General Repairs
North West Leicestershire District Council,31UH,Property Services,Property Facilities Management,PROPFM,Thomas Cassie & Sons (Leicester) Ltd,A044078,13/03/2019,1375964,8000,Contract Payments (Other) Ext
North West Leicestershire District Council,31UH,Environmental Health,Environmental Health & Licensing,EEHL,ALS,A044735,13/03/2019,1376040,475.05,Private & Pool Water Sampling
North West Leicestershire District Council,31UH,Property Services,Property Facilities Management,PROPFM,London Fire Consultants & Design,A038408,13/03/2019,1376041,800,Fire Precaution Appliances
North West Leicestershire District Council,31UH,Housing Repairs,HRA Housing Repairs & Maintenance,HRAHRM,Leicestershire County Council,A000950,13/03/2019,1376065,15555.19,Fuel
North West Leicestershire District Council,31UH,Housing Repairs,HRA Housing Repairs & Maintenance,HRAHRM,Leicestershire County Council,A000950,13/03/2019,1376066,15000.35,Fuel
North West Leicestershire District Council,31UH,Housing,HRA Performance & Business Support,HRAPBS,Housemark Ltd,A033843,13/03/2019,1376080,399,Subscriptions
North West Leicestershire District Council,31UH,Street Management,Environment Transport,ENOT,Certas Energy Uk Ltd,A043448,13/03/2019,1376117,499.37,Fuel
North West Leicestershire District Council,31UH,Street Management,Environment Transport,ENOT,Certas Energy Uk Ltd,A043448,13/03/2019,1376118,18950.01,Fuel
North West Leicestershire District Council,31UH,Street Management,Environment Transport,ENOT,Oakwood Environmental Services T/A Enva,A040993,13/03/2019,1376160,368,General Materials
North West Leicestershire District Council,31UH,Street Management,Environment Parks,ENOP,Keith Cook Training Services,A027792,13/03/2019,1376167,580,Training Expenses
North West Leicestershire District Council,31UH,Street Management,Environment Parks,ENOP,Keith Cook Training Services,A027792,13/03/2019,1376168,401,Training Expenses
North West Leicestershire District Council,31UH,Planning & Development,Environment Planning Policy,EPP,Gillespies LLP,A045048,13/03/2019,1376170,5122.5,Legal & Professional Services
North West Leicestershire District Council,31UH,Leisure Centres,Hood Park Bar and Catering,HPBC,Snackline Direct Ltd,A042489,13/03/2019,1376180,255.65,Catering Provisions
North West Leicestershire District Council,31UH,Housing Repairs,HRA Housing Repairs & Maintenance,HRAHRM,Complete Vehicle Accessories Ltd,A044023,13/03/2019,1376192,10560,Operational Purchases
North West Leicestershire District Council,31UH,Street Management,Environment Parks,ENOP,Breedon Southern Ltd,A000214,13/03/2019,1376203,419.25,Operational Purchases
North West Leicestershire District Council,31UH,Property Services,Property Commercial Lettings,PROPCL,Pitney Bowes Finance Plc,A032630,13/03/2019,1376204,289.88,Equipment Operating Leases
North West Leicestershire District Council,31UH,Street Management,Environment Transport,ENOT,Scarab Sweepers Limited,A001445,13/03/2019,1376208,2507.98,Repairs - Parts
North West Leicestershire District Council,31UH,Leisure Centres,Hermitage Bar & Catering,HLBC,Snackline Direct Ltd,A042489,13/03/2019,1376212,798.7,Catering Provisions
North West Leicestershire District Council,31UH,Chief Exec,Chief Executive,CHEX,Sable Leigh Consultancy Ltd T/A SLC Rail,A042727,13/03/2019,1376260,920.9,Legal & Professional Services
North West Leicestershire District Council,31UH,Housing,HRA Older Persons Service,HRAOPS,Tunstall Healthcare (UK) Limited,A001701,06/03/2019,1375087,1280,Alarm System Telephones
North West Leicestershire District Council,31UH,Street Management,Environment Waste Management,ENOWM,Campbells Safety Wear,A043362,06/03/2019,1375699,551,Operational Equipment
North West Leicestershire District Council,31UH,Finance,Financial Planning,FINPLA,Cabinet Office,A043533,06/03/2019,1375701,2200,National Fraud Initiative
North West Leicestershire District Council,31UH,Street Management,Environment - Street Scene,ESS,Metric Group Ltd (Sales),A028996,06/03/2019,1375702,261,Subscriptions
North West Leicestershire District Council,31UH,Information Technology,ICT Services,ICT,Canon UK Ltd,A040459,06/03/2019,1375706,291.5,General Operational Equipment
North West Leicestershire District Council,31UH,Leisure Centres,Hood Park Leisure Centre,HPLC,Eon Central Networks,A028835,06/03/2019,1375721,465,Service Contracts
North West Leicestershire District Council,31UH,Leisure Centres,Hermitage Leisure Centre,HLC,DG Golding Skip Hire Ltd,A034994,06/03/2019,1375722,279.17,Operational Equipment
North West Leicestershire District Council,31UH,Information Technology,ICT Services,ICT,ACS Systems (UK) Ltd T/a ACS Office Solutions,A043447,06/03/2019,1375745,412,Computing
North West Leicestershire District Council,31UH,Street Management,Environment Parks,ENOP,Keith Cook Training Services,A027792,06/03/2019,1375749,413,Training Expenses
North West Leicestershire District Council,31UH,Street Management,Environment Parks,ENOP,Keith Cook Training Services,A027792,06/03/2019,1375750,356,Training Expenses
North West Leicestershire District Council,31UH,Housing Repairs,HRA Housing Repairs & Maintenance,HRAHRM,Oneserve Ltd,A041321,06/03/2019,1375754,1265,Computing
North West Leicestershire District Council,31UH,Leisure & Culture,Cultural Services Arts & Events,CULTEV,Live & Local Ltd,A043312,06/03/2019,1375755,1600,Event Expenditure
North West Leicestershire District Council,31UH,Property Services,Property Facilities Management,PROPFM,John Merison BMC Ltd,A001092,20/03/2019,1376445,268.55,General Repairs
North West Leicestershire District Council,31UH,Leisure Centres,Hermitage Bar & Catering,HLBC,The Muffin Man,A001162,20/03/2019,1376539,338.8,Catering Provisions
North West Leicestershire District Council,31UH,Property Services,Property Facilities Management,PROPFM,Logic Fire and Security Ltd,A044439,20/03/2019,1376553,468,Fire Precaution Appliances
North West Leicestershire District Council,31UH,Leisure Centres,Hood Park Leisure Centre,HPLC,Please Hold UK,A043591,20/03/2019,1376571,597,Service Contracts
North West Leicestershire District Council,31UH,Street Management,Environment Parks,ENOP,Keep Britain Tidy,A025681,20/03/2019,1376576,325,Green Flag Award Expenditure
North West Leicestershire District Council,31UH,Communications,Corporate - Communications,CP,Reflec Signs & Graphics Ltd,A025348,20/03/2019,1376580,950,Other Printing
North West Leicestershire District Council,31UH,Street Management,Environment - Street Scene,ESS,Sharps Acoustics LLP,A039235,20/03/2019,1376583,750,Legal & Professional Services
North West Leicestershire District Council,31UH,Leisure Centres,Hood Park Leisure Centre,HPLC,Les Mills Fitness UK Ltd,A039334,20/03/2019,1376586,251.51,Service Contracts
North West Leicestershire District Council,31UH,Leisure Centres,Hood Park Leisure Centre,HPLC,Dura-Sport (Leisure Care) Ltd,A041815,20/03/2019,1376590,2139,General Repairs
North West Leicestershire District Council,31UH,Leisure Centres,Hood Park Bar and Catering,HPBC,Snackline Direct Ltd,A042489,20/03/2019,1376593,451.71,Vending Machine Provisions
North West Leicestershire District Council,31UH,Economic Development,Business Focus Group,BFG,InTechnology PLC,A045016,20/03/2019,1376597,1200,Legal & Professional Services
North West Leicestershire District Council,31UH,Leisure Centres,Hood Park Leisure Centre,HPLC,J P Lennard Ltd,A000969,06/03/2019,1375637,288.66,Operational Equipment
North West Leicestershire District Council,31UH,Housing,HRA Older Persons Service,HRAOPS,Tunstall Healthcare (UK) Limited,A001701,06/03/2019,1375649,374.7,Alarm System Telephones
North West Leicestershire District Council,31UH,Housing,HRA Housing Management,HRAHM,Aareon UK Ltd,A045197,06/03/2019,1375656,870,Contract Payments (Other) Ext
North West Leicestershire District Council,31UH,Housing,HRA Housing Management,HRAHM,Aareon UK Ltd,A045197,06/03/2019,1375657,870,Contract Payments (Other) Ext
North West Leicestershire District Council,31UH,Housing,HRA Housing Management,HRAHM,Aareon UK Ltd,A045197,06/03/2019,1375658,870,Contract Payments (Other) Ext
North West Leicestershire District Council,31UH,Information Technology,ICT Services,ICT,ACS Systems (UK) Ltd T/a ACS Office Solutions,A043447,06/03/2019,1375684,3400,Computing
North West Leicestershire District Council,31UH,Property Services,Property Facilities Management,PROPFM,Watertec Compliance Solutions Ltd,A044559,06/03/2019,1375741,1699.98,General Repairs
North West Leicestershire District Council,31UH,Housing,HRA Housing Management,HRAHM,Coalville Yellow Cabs,A041983,06/03/2019,1375762,489,Public Transport
North West Leicestershire District Council,31UH,Housing Repairs,HRA Housing Repairs & Maintenance,HRAHRM,Arco Limited,A000068,06/03/2019,1375965,333.66,Operational Purchases
North West Leicestershire District Council,31UH,Communications,Corporate - Communications,CP,Phoenix Children's Foundation,A045052,06/03/2019,1375970,600,Event Expenditure
North West Leicestershire District Council,31UH,Property Services,Property Commercial Lettings,PROPCL,Horizon Control Ltd,A044513,20/03/2019,1376076,8494,General Repairs
North West Leicestershire District Council,31UH,Street Management,Environment Transport,ENOT,Pakawaste Ltd,A032627,20/03/2019,1376194,1560,Operational Equipment
North West Leicestershire District Council,31UH,Information Technology,ICT Services,ICT,Capita Business Services Ltd,A002968,20/03/2019,1376205,43723,Computing
North West Leicestershire District Council,31UH,Environmental Health,Environmental Health & Licensing,EEHL,Eville And Jones Limited,A033670,20/03/2019,1376226,467.55,Vet Inspection
North West Leicestershire District Council,31UH,Leisure Centres,Hermitage Leisure Centre,HLC,JC Leisure Solutions,A044714,20/03/2019,1376431,740,General Repairs
North West Leicestershire District Council,31UH,Legal & Democratic,Member Services,LDMS,Local Government Association,A002189,20/03/2019,1376441,1000,Training Expenses
North West Leicestershire District Council,31UH,Property Services,Property Commercial Lettings,PROPCL,John Merison BMC Ltd,A001092,20/03/2019,1376448,3354.21,General Repairs
North West Leicestershire District Council,31UH,Legal & Democratic,Business Development Team,BDT,InPhase Ltd,A044108,20/03/2019,1376465,3000,Computing
North West Leicestershire District Council,31UH,Legal & Democratic,Legal Services,LDLS,East Midlands Councils,A008942,20/03/2019,1376470,650,Training Expenses
North West Leicestershire District Council,31UH,Finance,Revenues,REVS,Hinckley & Bosworth Borough Council,A000770,20/03/2019,1376476,188327.02,Shared Revs & Bens Partnership costs
North West Leicestershire District Council,31UH,Finance,Financial Planning,FINPLA,CIPFA,A027467,20/03/2019,1376483,1500,Subscriptions
North West Leicestershire District Council,31UH,Housing,HRA Performance & Business Support,HRAPBS,Marsh Limited,A042169,20/03/2019,1376491,10646.84,Insurance - Tenants Contributions
North West Leicestershire District Council,31UH,Leisure Centres,Hermitage Leisure Centre,HLC,ESPO,A000958,20/03/2019,1376495,512,Operational Equipment
North West Leicestershire District Council,31UH,Street Management,Environment Waste Management,ENOWM,Glasdon UK Ltd,A000671,20/03/2019,1376500,1452.78,General Materials
North West Leicestershire District Council,31UH,Information Technology,ICT Services,ICT,Adept Telecom Plc,A044193,20/03/2019,1376510,13320.75,Admin Equipment - Maintenance
North West Leicestershire District Council,31UH,Information Technology,ICT Services,ICT,Six Degrees Technology Group Ltd,A044205,20/03/2019,1376511,5016.15,Admin Equipment - Maintenance
North West Leicestershire District Council,31UH,Street Management,Environment Parks,ENOP,Central Construction Services,A004448,06/03/2019,1373334,372.75,Operational Purchases
North West Leicestershire District Council,31UH,Property Services,Property Facilities Management,PROPFM,John Merison BMC Ltd,A001092,06/03/2019,1374676,6119.7,General Repairs
North West Leicestershire District Council,31UH,Housing Repairs,HRA Housing Repairs & Maintenance,HRAHRM,Bramble.cc Limited,A036895,06/03/2019,1375596,13244.6,Licences
North West Leicestershire District Council,31UH,Legal & Democratic,Legal Services,LDLS,Riba Enterprises Ltd,A034943,06/03/2019,1375608,344,Legal & Professional Services
North West Leicestershire District Council,31UH,Information Technology,ICT Services,ICT,Premier Paper Group,A042438,06/03/2019,1375611,534.11,Consumable Materials
North West Leicestershire District Council,31UH,Leisure & Culture,Cultural Services Arts & Events,CULTEV,Live & Local Ltd,A043312,06/03/2019,1375621,1600,Event Expenditure
North West Leicestershire District Council,31UH,Leisure Centres,Hermitage Leisure Centre,HLC,Measham Leisure Centre,A027454,06/03/2019,1375626,2629.02,Measham LC Lifestyle DD
North West Leicestershire District Council,31UH,Leisure Centres,Hermitage Bar & Catering,HLBC,Snackline Direct Ltd,A042489,06/03/2019,1375632,263.71,Catering Provisions
North West Leicestershire District Council,31UH,Street Management,Environment Parks,ENOP,David Ogilvie Engineering Ltd,A044613,06/03/2019,1375642,1824,Event Expenditure
North West Leicestershire District Council,31UH,Leisure & Culture,Cultural Services TIC,CULTIC,Leicester Shire Promotions Ltd,A028765,06/03/2019,1375648,700,Marketing (Expenditure)
North West Leicestershire District Council,31UH,Property Services,Property Commercial Lettings,PROPCL,Coalville Cleaning Services,A003037,06/03/2019,1375659,291.9,Consumable Materials
North West Leicestershire District Council,31UH,Street Management,Environment Waste Management,ENOWM,One51 ES Plastics(UK) Ltd  t/a MGB Plastics,A044595,06/03/2019,1375662,9900,General Materials
North West Leicestershire District Council,31UH,Leisure Centres,Hermitage Bar & Catering,HLBC,Siemens Financial Services Ltd,A029510,06/03/2019,1375677,617.76,Equipment Operating Leases
North West Leicestershire District Council,31UH,Housing,HRA Housing Management,HRAHM,Housemark Ltd,A033843,06/03/2019,1375681,500,Legal & Professional Services
North West Leicestershire District Council,31UH,Housing,HRA Housing Management,HRAHM,Housemark Ltd,A033843,06/03/2019,1375682,2400,Legal & Professional Services
North West Leicestershire District Council,31UH,Street Management,Environment Parks,ENOP,Lion Containers Ltd,A040317,06/03/2019,1375689,1815,Operational Purchases
North West Leicestershire District Council,31UH,Street Management,Environment - Street Scene,ESS,4 Planning Delivers Ltd,A043779,20/03/2019,1376475,1990.25,Consultants Fees
North West Leicestershire District Council,31UH,Property Services,Property Facilities Management,PROPFM,Fire Proof Ltd,A039911,20/03/2019,1376490,581.65,General Repairs
North West Leicestershire District Council,31UH,Street Management,Environment Transport,ENOT,J F Lloyd & Sons,A000991,20/03/2019,1376493,450,Hire Of Operational Equipment
North West Leicestershire District Council,31UH,Street Management,Environment Transport,ENOT,Drive Vauxhall,A038406,20/03/2019,1376496,15646.13,Vehicle Leasing
North West Leicestershire District Council,31UH,Street Management,Environment Transport,ENOT,Drive Vauxhall,A038406,20/03/2019,1376497,15646.13,Vehicle Leasing
North West Leicestershire District Council,31UH,Street Management,Environment Transport,ENOT,Drive Vauxhall,A038406,20/03/2019,1376498,15646.13,Vehicle Leasing
North West Leicestershire District Council,31UH,Street Management,Environment Transport,ENOT,Drive Vauxhall,A038406,20/03/2019,1376499,15646.13,Vehicle Leasing
North West Leicestershire District Council,31UH,Street Management,Environment - Street Scene,ESS,Heath Pest Control Services,A010787,20/03/2019,1376501,340,Health & Safety Repairs/Maintenance
North West Leicestershire District Council,31UH,Legal & Democratic,Legal Services,LDLS,Sellick Partnership (East Midlands) Limited,A036668,20/03/2019,1376508,692.66,Agency Staff
North West Leicestershire District Council,31UH,Planning & Development,Environment Planning Policy,EPP,Intelligent Plan and Examinations,A045250,20/03/2019,1376523,5373.75,Legal & Professional Services
North West Leicestershire District Council,31UH,Housing,HRA Housing Management,HRAHM,Aareon UK Ltd,A045197,20/03/2019,1376534,1840,Contract Payments (Other) Ext
North West Leicestershire District Council,31UH,Leisure Centres,Hermitage Bar & Catering,HLBC,Snackline Direct Ltd,A042489,20/03/2019,1376540,291.75,Catering Provisions
North West Leicestershire District Council,31UH,Leisure Centres,Hood Park Leisure Centre,HPLC,Ashby School,A035643,20/03/2019,1376589,312.8,Venue Hire
North West Leicestershire District Council,31UH,Property Services,Property Facilities Management,PROPFM,Regarde Security Ltd,A013049,20/03/2019,1376694,260.4,Security Services
North West Leicestershire District Council,31UH,Property Services,Property Facilities Management,PROPFM,Gleam Team Services Limited,A000129,20/03/2019,1376709,350,Service Contracts
North West Leicestershire District Council,31UH,Street Management,Environment Waste Management,ENOWM,QSP Limited,A031365,13/03/2019,1372193,2995,Training Expenses
North West Leicestershire District Council,31UH,Street Management,Environment Transport,ENOT,Ford & Slater Group Ltd,A000625,13/03/2019,1375063,59020,Vehicle Leasing
North West Leicestershire District Council,31UH,Environmental Health,Environmental Health & Licensing,EEHL,Killgerm Chemicals Ltd,A000890,13/03/2019,1375644,370.95,Baits & Poisons
North West Leicestershire District Council,31UH,Leisure Centres,Hermitage Leisure Centre,HLC,City Electrical Factors Limited,A035306,13/03/2019,1375696,558.6,General Repairs
North West Leicestershire District Council,31UH,Leisure Centres,Hermitage Leisure Centre,HLC,Century Fire & Security Limited,A020453,13/03/2019,1375703,3145,General Repairs
North West Leicestershire District Council,31UH,Leisure Centres,Hood Park Leisure Centre,HPLC,GTE Electrical Services Ltd,A044968,13/03/2019,1375704,8860,General Repairs
North West Leicestershire District Council,31UH,Information Technology,ICT Services,ICT,Freedom Communications (UK) Ltd,A032826,13/03/2019,1375752,1242,Corporate IT Licences
North West Leicestershire District Council,31UH,Communications,Corporate - Communications,CP,The Studio 17,A032007,13/03/2019,1376019,500,Legal & Professional Services
North West Leicestershire District Council,31UH,Leisure Centres,Hermitage Leisure Centre,HLC,Gladstone MRM Ltd,A024642,13/03/2019,1376027,540,Operational Equipment
North West Leicestershire District Council,31UH,Legal & Democratic,Legal Services,LDLS,Sellick Partnership (East Midlands) Limited,A036668,13/03/2019,1376044,545.29,Agency Staff
North West Leicestershire District Council,31UH,Street Management,Environment Transport,ENOT,Calor Gas Limited,A032686,13/03/2019,1376050,1307.3,Gas
North West Leicestershire District Council,31UH,Street Management,Environment - Street Scene,ESS,RAS Town Planning Services,A045293,13/03/2019,1376058,2100,Consultants Fees
North West Leicestershire District Council,31UH,Street Management,Environment - Street Scene,ESS,Derby City Council,A000478,13/03/2019,1376059,325,Training Expenses
North West Leicestershire District Council,31UH,Street Management,Environment Transport,ENOT,Action Training,A045251,13/03/2019,1376077,1044,Training Expenses
North West Leicestershire District Council,31UH,Information Technology,ICT Services,ICT,Cable & Wireless Worldwide,A038473,13/03/2019,1376090,3455.74,Admin Equipment - Maintenance
North West Leicestershire District Council,31UH,Street Management,Environment Transport,ENOT,Ford & Slater Group Ltd,A000625,27/03/2019,1376505,264.95,Repairs - Parts
North West Leicestershire District Council,31UH,Street Management,Environment Transport,ENOT,Dennis Eagle Limited,A000522,27/03/2019,1376526,273.81,Scheduled Servicing - Parts
North West Leicestershire District Council,31UH,Housing Repairs,HRA Housing Repairs & Maintenance,HRAHRM,Alliance Contracting Solutions Ltd,A043325,27/03/2019,1376782,1250,Footpaths & Unadopted Roads
North West Leicestershire District Council,31UH,Property Services,Property Facilities Management,PROPFM,Midlands Cooling Services Ltd,A043433,27/03/2019,1376784,384.5,General Repairs
North West Leicestershire District Council,31UH,Street Management,Environment - Street Scene,ESS,Metric Group Ltd (Sales),A028996,27/03/2019,1376785,335,Operational Equipment
North West Leicestershire District Council,31UH,Neighbourhoods & Communities,N & C Community Safety,NACCS,The National Flood Forum,A045330,27/03/2019,1376787,911.92,Event Expenditure
North West Leicestershire District Council,31UH,Property Services,Property Commercial Lettings,PROPCL,John Merison BMC Ltd,A001092,27/03/2019,1376792,252,General Repairs
North West Leicestershire District Council,31UH,Property Services,Property Commercial Lettings,PROPCL,John Merison BMC Ltd,A001092,27/03/2019,1376793,523.04,General Repairs
North West Leicestershire District Council,31UH,Property Services,Property Facilities Management,PROPFM,Geze Uk Limited,A023130,27/03/2019,1376794,261.5,General Repairs
North West Leicestershire District Council,31UH,Finance,Financial Planning,FINPLA,Trident Midland Newspapers,A033442,27/03/2019,1376802,1520,Advertising
North West Leicestershire District Council,31UH,Property Services,Property Commercial Lettings,PROPCL,John Merison BMC Ltd,A001092,27/03/2019,1376806,1234.63,General Repairs
North West Leicestershire District Council,31UH,Street Management,Environment Transport,ENOT,Malvern Tyres,A035175,27/03/2019,1376808,449.1,Transport Costs - Tyres
North West Leicestershire District Council,31UH,Street Management,Environment Transport,ENOT,Spaldings (UK) Limited,A001540,27/03/2019,1376815,595.77,Repairs - Parts
North West Leicestershire District Council,31UH,Street Management,Environment Transport,ENOT,Reflec Signs & Graphics Ltd,A025348,27/03/2019,1376817,384,Repairs - Parts
North West Leicestershire District Council,31UH,Street Management,Environment Transport,ENOT,Sherwood Truck and Van Limited,A035120,27/03/2019,1376818,341.18,Repairs - Parts
North West Leicestershire District Council,31UH,Street Management,Environment Transport,ENOT,Watling JCB Ltd,A032114,27/03/2019,1376819,477,Scheduled Servicing - Parts
North West Leicestershire District Council,31UH,Street Management,Environment Transport,ENOT,Watling JCB Ltd,A032114,27/03/2019,1376821,292.4,Repairs - Parts
North West Leicestershire District Council,31UH,Street Management,Environment Transport,ENOT,Malvern Tyres,A035175,27/03/2019,1376843,359.28,Transport Costs - Tyres
North West Leicestershire District Council,31UH,Leisure Centres,Hermitage Leisure Centre,HLC,JC Leisure Solutions,A044714,27/03/2019,1376849,275,General Repairs
North West Leicestershire District Council,31UH,Property Services,Property Facilities Management,PROPFM,Fire Proof Ltd,A039911,27/03/2019,1376851,255.55,General Repairs
North West Leicestershire District Council,31UH,Chief Exec,Chief Executive,CHEX,Euro RSCG People T/A Havas People Ltd,A001395,27/03/2019,1376864,636.02,Advertising
North West Leicestershire District Council,31UH,Street Management,Environment Transport,ENOT,Second 2 None,A031408,27/03/2019,1376865,305,Vehicle Cleaning
North West Leicestershire District Council,31UH,Street Management,Environment Transport,ENOT,Terberg Matec UK Limited,A001647,27/03/2019,1376870,320.39,Repairs - Parts
North West Leicestershire District Council,31UH,Street Management,Environment Transport,ENOT,Mertrux Ltd,A035291,27/03/2019,1376871,991.94,Scheduled Servicing - Parts
North West Leicestershire District Council,31UH,Street Management,Environment Transport,ENOT,Parkers The Parts People,A044935,27/03/2019,1376886,319.99,Transport Costs - Engine Oil
North West Leicestershire District Council,31UH,Street Management,Environment Transport,ENOT,Aebi Schmidt Uk Limited,A017053,27/03/2019,1376901,386.6,Scheduled Servicing - Parts
North West Leicestershire District Council,31UH,Economic Development,Business Focus Group,BFG,The Economic Monitoring Company Ltd,A045388,27/03/2019,1376925,1500,Legal & Professional Services
North West Leicestershire District Council,31UH,Property Services,Property Commercial Lettings,PROPCL,Coalville Cleaning Services,A003037,27/03/2019,1376928,304.45,Contract Cleaning
North West Leicestershire District Council,31UH,Property Services,Property Commercial Lettings,PROPCL,Coalville Cleaning Services,A003037,27/03/2019,1376929,585.96,Contract Cleaning
North West Leicestershire District Council,31UH,Information Technology,ICT Services,ICT,Dell Computer Corporation Ltd,A000470,27/03/2019,1376931,5355,Corporate PC Purchases
North West Leicestershire District Council,31UH,Housing Repairs,HRA Housing Repairs & Maintenance,HRAHRM,Ward Recycling,A035471,27/03/2019,1376932,740.64,Tipping Charges
North West Leicestershire District Council,31UH,Housing Repairs,HRA Housing Repairs & Maintenance,HRAHRM,Timber-Link Fencing Ltd,A033297,06/03/2019,1376014,620,External Contractor Payments
North West Leicestershire District Council,31UH,Housing Repairs,HRA Housing Repairs & Maintenance,HRAHRM,Timber-Link Fencing Ltd,A033297,06/03/2019,1376015,400,External Contractor Payments
North West Leicestershire District Council,31UH,Housing Repairs,HRA Housing Repairs & Maintenance,HRAHRM,Timber-Link Fencing Ltd,A033297,06/03/2019,1376016,675,External Contractor Payments
North West Leicestershire District Council,31UH,Housing Repairs,HRA Housing Repairs & Maintenance,HRAHRM,H20 Utilities Ltd,A043865,06/03/2019,1375983,1400,Associated Drainage Services
North West Leicestershire District Council,31UH,Housing Repairs,HRA Housing Repairs & Maintenance,HRAHRM,H20 Utilities Ltd,A043865,06/03/2019,1375986,1400,Associated Drainage Services
North West Leicestershire District Council,31UH,Housing Repairs,HRA Housing Repairs & Maintenance,HRAHRM,Western Power Distribution,A038499,06/03/2019,1375987,529.81,Utilities and Connection Services
North West Leicestershire District Council,31UH,Housing Repairs,HRA Housing Repairs & Maintenance,HRAHRM,Orbis Property Protection Ltd,A028149,06/03/2019,1375990,1120.6,Void Property Clearance Services
North West Leicestershire District Council,31UH,Housing Repairs,HRA Housing Repairs & Maintenance,HRAHRM,Leicestershire County Council,A000950,06/03/2019,1375992,4270,Contract Payments (Dws) Ext
North West Leicestershire District Council,31UH,Housing Repairs,HRA Housing Repairs & Maintenance,HRAHRM,Laker BMS Ltd,A031787,06/03/2019,1375993,1931.11,Housing Repairs
North West Leicestershire District Council,31UH,Housing Repairs,HRA Housing Repairs & Maintenance,HRAHRM,Laker BMS Ltd,A031787,06/03/2019,1375994,4087.81,Housing Repairs
North West Leicestershire District Council,31UH,Housing Repairs,HRA Housing Repairs & Maintenance,HRAHRM,Timber-Link Fencing Ltd,A033297,13/03/2019,1376434,4825,External Contractor Payments
North West Leicestershire District Council,31UH,Housing Repairs,HRA Housing Repairs & Maintenance,HRAHRM,Timber-Link Fencing Ltd,A033297,13/03/2019,1376435,1200,External Contractor Payments
North West Leicestershire District Council,31UH,Housing Repairs,HRA Housing Repairs & Maintenance,HRAHRM,Timber-Link Fencing Ltd,A033297,27/03/2019,1377156,517,External Contractor Payments
North West Leicestershire District Council,31UH,Housing Repairs,HRA Housing Repairs & Maintenance,HRAHRM,Timber-Link Fencing Ltd,A033297,27/03/2019,1377157,1724,External Contractor Payments
North West Leicestershire District Council,31UH,Housing Repairs,HRA Housing Repairs & Maintenance,HRAHRM,Timber-Link Fencing Ltd,A033297,27/03/2019,1377158,535,External Contractor Payments
North West Leicestershire District Council,31UH,Housing Repairs,HRA Housing Repairs & Maintenance,HRAHRM,Timber-Link Fencing Ltd,A033297,20/03/2019,1376605,8610,External Contractor Payments
North West Leicestershire District Council,31UH,Housing Repairs,HRA Housing Repairs & Maintenance,HRAHRM,Timber-Link Fencing Ltd,A033297,20/03/2019,1376607,965,External Contractor Payments
North West Leicestershire District Council,31UH,Housing Repairs,HRA Housing Repairs & Maintenance,HRAHRM,Timber-Link Fencing Ltd,A033297,20/03/2019,1376608,485,External Contractor Payments
North West Leicestershire District Council,31UH,Housing Repairs,HRA Housing Repairs & Maintenance,HRAHRM,Timber-Link Fencing Ltd,A033297,20/03/2019,1376609,530,External Contractor Payments
North West Leicestershire District Council,31UH,Housing Repairs,HRA Housing Repairs & Maintenance,HRAHRM,TECSERV UK LIMITED,A028261,20/03/2019,1376736,288.58,Door Entry System
North West Leicestershire District Council,31UH,Housing Repairs,HRA Housing Repairs & Maintenance,HRAHRM,TECSERV UK LIMITED,A028261,20/03/2019,1376745,327.35,Door Entry System
North West Leicestershire District Council,31UH,Housing Repairs,HRA Housing Repairs & Maintenance,HRAHRM,Laker BMS Ltd,A031787,20/03/2019,1376746,578,Housing Repairs
North West Leicestershire District Council,31UH,Housing Repairs,HRA Housing Repairs & Maintenance,HRAHRM,Cadent Gas limited,A032629,20/03/2019,1376747,652,Contract Payments (Dws) Ext
North West Leicestershire District Council,31UH,Housing Repairs,HRA Housing Repairs & Maintenance,HRAHRM,Cadent Gas limited,A032629,20/03/2019,1376756,510,Contract Payments (Dws) Ext
North West Leicestershire District Council,31UH,Housing Repairs,HRA Housing Repairs & Maintenance,HRAHRM,Laker BMS Ltd,A031787,20/03/2019,1376757,578,Housing Repairs
North West Leicestershire District Council,31UH,Housing Repairs,HRA Housing Repairs & Maintenance,HRAHRM,Orbis Property Protection Ltd,A028149,20/03/2019,1376758,667.84,Void Property Clearance Services
North West Leicestershire District Council,31UH,Housing Repairs,HRA Housing Repairs & Maintenance,HRAHRM,TECSERV UK LIMITED,A028261,27/03/2019,1377166,456.43,Door Entry System
North West Leicestershire District Council,31UH,Housing Repairs,HRA Housing Repairs & Maintenance,HRAHRM,Geze Uk Limited,A023130,27/03/2019,1377167,1791.06,Door Supplies
North West Leicestershire District Council,31UH,Housing Repairs,HRA Housing Repairs & Maintenance,HRAHRM,Orbis Property Protection Ltd,A028149,27/03/2019,1377168,526.87,Void Property Clearance Services
North West Leicestershire District Council,31UH,Housing Repairs,HRA Housing Repairs & Maintenance,HRAHRM,Orbis Property Protection Ltd,A028149,27/03/2019,1377169,695,Void Property Clearance Services
North West Leicestershire District Council,31UH,Housing Repairs,HRA Housing Repairs & Maintenance,HRAHRM,Leicestershire County Council,A000950,27/03/2019,1377170,1152.75,Contract Payments (Dws) Ext
North West Leicestershire District Council,31UH,Housing Repairs,HRA Housing Repairs & Maintenance,HRAHRM,Orbis Property Protection Ltd,A028149,27/03/2019,1377171,718.27,Void Property Clearance Services
North West Leicestershire District Council,31UH,Housing Repairs,HRA Housing Repairs & Maintenance,HRAHRM,TECSERV UK LIMITED,A028261,27/03/2019,1377172,521.98,Door Entry System
North West Leicestershire District Council,31UH,Housing Repairs,HRA Housing Repairs & Maintenance,HRAHRM,Orbis Property Protection Ltd,A028149,27/03/2019,1377173,349.87,Void Property Clearance Services
North West Leicestershire District Council,31UH,Housing Repairs,HRA Housing Repairs & Maintenance,HRAHRM,Orbis Property Protection Ltd,A028149,27/03/2019,1377178,409.52,Void Property Clearance Services
North West Leicestershire District Council,31UH,Housing Repairs,HRA Housing Repairs & Maintenance,HRAHRM,Orbis Property Protection Ltd,A028149,13/03/2019,1376274,334.43,Void Property Clearance Services
North West Leicestershire District Council,31UH,Housing Repairs,HRA Housing Repairs & Maintenance,HRAHRM,Orbis Property Protection Ltd,A028149,13/03/2019,1376275,256.23,Void Property Clearance Services
North West Leicestershire District Council,31UH,Housing Repairs,HRA Housing Repairs & Maintenance,HRAHRM,Orbis Property Protection Ltd,A028149,13/03/2019,1376276,509.36,Void Property Clearance Services
North West Leicestershire District Council,31UH,Housing Repairs,HRA Housing Repairs & Maintenance,HRAHRM,Laker BMS Ltd,A031787,13/03/2019,1376277,6414.26,Housing Repairs
North West Leicestershire District Council,31UH,Housing Repairs,HRA Housing Repairs & Maintenance,HRAHRM,Laker BMS Ltd,A031787,13/03/2019,1376278,289,Housing Repairs
North West Leicestershire District Council,31UH,Housing Repairs,HRA Housing Repairs & Maintenance,HRAHRM,Laker BMS Ltd,A031787,13/03/2019,1376279,5500,Housing Repairs
North West Leicestershire District Council,31UH,Housing Repairs,HRA Housing Repairs & Maintenance,HRAHRM,Laker BMS Ltd,A031787,13/03/2019,1376280,289,Housing Repairs
North West Leicestershire District Council,31UH,Housing Repairs,HRA Housing Repairs & Maintenance,HRAHRM,Laker BMS Ltd,A031787,13/03/2019,1376281,578,Housing Repairs
